[Event "Early-Titled-Tuesday-Blitz-September-26-2023"]
[Site "Chess.com"]
[Date "2023.09.26"]
[Round "4"]
[White "venturov"]
[Black "Witty_Alien"]
[Result "0-1"]
[WhiteElo "2442"]
[BlackElo "2220"]
[TimeControl "180+1"]
[EndTime "8:40:11 PDT"]
[Termination "Witty_Alien won by checkmate"]

1. e4 {[%clk 0:03:00.9]} 1... c5 {[%clk 0:03:00]} 2. Nf3 {[%clk 0:02:54.3]} 2...
d6 {[%clk 0:03:00.2]} 3. Bb5+ {[%clk 0:02:52.4]} 3... Bd7 {[%clk 0:02:53.9]} 4.
c4 {[%clk 0:02:49]} 4... Nf6 {[%clk 0:02:50.4]} 5. Nc3 {[%clk 0:02:48.5]} 5...
g6 {[%clk 0:02:48.4]} 6. Bxd7+ {[%clk 0:02:44]} 6... Qxd7 {[%clk 0:02:47.6]} 7.
d4 {[%clk 0:02:44.5]} 7... cxd4 {[%clk 0:02:46.3]} 8. Nxd4 {[%clk 0:02:45.4]}
8... Bg7 {[%clk 0:02:45.5]} 9. O-O {[%clk 0:02:42.9]} 9... Nc6 {[%clk
0:02:38.9]} 10. Be3 {[%clk 0:02:27.8]} 10... Ng4 {[%clk 0:02:20.7]} 11. Nxc6
{[%clk 0:02:18.5]} 11... Nxe3 {[%clk 0:02:16.4]} 12. fxe3 {[%clk 0:02:19.4]}
12... bxc6 {[%clk 0:02:12.6]} 13. Qd3 {[%clk 0:02:14.6]} 13... Qe6 {[%clk
0:01:57.6]} 14. Rad1 {[%clk 0:02:12.9]} 14... O-O {[%clk 0:01:49]} 15. Rc1
{[%clk 0:01:50.3]} 15... a5 {[%clk 0:01:22.8]} 16. b3 {[%clk 0:01:48.3]} 16...
Bxc3 {[%clk 0:01:17.5]} 17. Rxc3 {[%clk 0:01:46.9]} 17... c5 {[%clk 0:01:17.7]}
18. Rc2 {[%clk 0:01:34.2]} 18... a4 {[%clk 0:01:06.7]} 19. Rcf2 {[%clk
0:01:33.4]} 19... axb3 {[%clk 0:01:03.4]} 20. axb3 {[%clk 0:01:34.3]} 20... Ra3
{[%clk 0:00:52.8]} 21. h3 {[%clk 0:01:34.4]} 21... f6 {[%clk 0:00:48.4]} 22. Qc2
{[%clk 0:01:27.1]} 22... Rb8 {[%clk 0:00:44.5]} 23. Rb1 {[%clk 0:01:26.2]} 23...
Qe5 {[%clk 0:00:32.9]} 24. Qd3 {[%clk 0:01:25.2]} 24... Kg7 {[%clk 0:00:23.3]}
25. Rff1 {[%clk 0:01:22.4]} 25... Ra2 {[%clk 0:00:21]} 26. Rf2 {[%clk
0:01:19.5]} 26... Rxf2 {[%clk 0:00:19.4]} 27. Kxf2 {[%clk 0:01:20.4]} 27... Ra8
{[%clk 0:00:20]} 28. Rd1 {[%clk 0:01:13.7]} 28... h5 {[%clk 0:00:17.3]} 29. g3
{[%clk 0:01:08.6]} 29... h4 {[%clk 0:00:16.7]} 30. gxh4 {[%clk 0:01:05.3]} 30...
Qh2+ {[%clk 0:00:16.7]} 31. Ke1 {[%clk 0:01:03.1]} 31... Ra2 {[%clk 0:00:11.1]}
32. Rd2 {[%clk 0:01:02.8]} 32... Qg1+ {[%clk 0:00:10.5]} 33. Ke2 {[%clk
0:01:02.9]} 33... Ra1 {[%clk 0:00:10.1]} 34. Rd1 {[%clk 0:01:02.1]} 34... Qg2+
{[%clk 0:00:10.3]} 35. Ke1 {[%clk 0:01:01.9]} 35... Qg3+ {[%clk 0:00:09.6]} 36.
Ke2 {[%clk 0:01:02.1]} 36... Qh2+ {[%clk 0:00:08.6]} 37. Ke1 {[%clk 0:01:02]}
37... Ra2 {[%clk 0:00:09.1]} 38. Rd2 {[%clk 0:01:02.2]} 38... Qg1+ {[%clk
0:00:08.7]} 39. Ke2 {[%clk 0:01:02.4]} 39... Qg2+ {[%clk 0:00:08.2]} 40. Ke1
{[%clk 0:01:02.6]} 40... Qg3+ {[%clk 0:00:08.8]} 41. Ke2 {[%clk 0:01:02.8]}
41... Ra1 {[%clk 0:00:09.1]} 42. Rd1 {[%clk 0:01:02.9]} 42... Ra3 {[%clk
0:00:09.1]} 43. e5 {[%clk 0:01:01.1]} 43... Qxe5 {[%clk 0:00:09.1]} 44. Ke1
{[%clk 0:00:55]} 44... Ra2 {[%clk 0:00:08.3]} 45. Rd2 {[%clk 0:00:55.2]} 45...
Qg3+ {[%clk 0:00:08.7]} 46. Ke2 {[%clk 0:00:55.1]} 46... Qg2+ {[%clk 0:00:09]}
47. Ke1 {[%clk 0:00:55.4]} 47... Rxd2 {[%clk 0:00:09.2]} 48. Qxd2 {[%clk
0:00:55.5]} 48... Qg1+ {[%clk 0:00:07]} 49. Ke2 {[%clk 0:00:55.7]} 49... Qg2+
{[%clk 0:00:07]} 50. Ke1 {[%clk 0:00:53.7]} 50... Qxd2+ {[%clk 0:00:07]} 51.
Kxd2 {[%clk 0:00:54]} 51... Kh6 {[%clk 0:00:07.7]} 52. Ke2 {[%clk 0:00:50.3]}
52... Kh5 {[%clk 0:00:07.7]} 53. Kf3 {[%clk 0:00:51.2]} 53... Kxh4 {[%clk
0:00:07.4]} 54. Kg2 {[%clk 0:00:51.9]} 54... Kg5 {[%clk 0:00:06.5]} 55. Kg3
{[%clk 0:00:52.3]} 55... Kf5 {[%clk 0:00:06.4]} 56. Kf3 {[%clk 0:00:52.9]} 56...
g5 {[%clk 0:00:06.7]} 57. e4+ {[%clk 0:00:52.1]} 57... Ke5 {[%clk 0:00:05.9]}
58. Ke3 {[%clk 0:00:53]} 58... e6 {[%clk 0:00:06.3]} 59. b4 {[%clk 0:00:51.8]}
59... cxb4 {[%clk 0:00:06.1]} 60. Kd3 {[%clk 0:00:51.4]} 60... f5 {[%clk
0:00:04.6]} 61. exf5 {[%clk 0:00:51.8]} 61... exf5 {[%clk 0:00:05.5]} 62. Kc2
{[%clk 0:00:51.1]} 62... Kd4 {[%clk 0:00:05.6]} 63. Kb3 {[%clk 0:00:52]} 63...
Kc5 {[%clk 0:00:05.8]} 64. Kc2 {[%clk 0:00:51.5]} 64... Kxc4 {[%clk 0:00:05.9]}
65. Kd2 {[%clk 0:00:51.8]} 65... b3 {[%clk 0:00:06.2]} 66. Ke3 {[%clk
0:00:52.7]} 66... b2 {[%clk 0:00:06.5]} 67. h4 {[%clk 0:00:53.6]} 67... gxh4
{[%clk 0:00:06.8]} 68. Kf4 {[%clk 0:00:54]} 68... b1=Q {[%clk 0:00:07.3]} 69.
Kg5 {[%clk 0:00:54.3]} 69... h3 {[%clk 0:00:07.7]} 70. Kf6 {[%clk 0:00:55.2]}
70... h2 {[%clk 0:00:08.3]} 71. Kg7 {[%clk 0:00:56.1]} 71... h1=Q {[%clk
0:00:09]} 72. Kf8 {[%clk 0:00:57]} 72... Qh7 {[%clk 0:00:09]} 73. Ke8 {[%clk
0:00:56.6]} 73... Qb8# {[%clk 0:00:09.9]} 0-1

[Event "Early-Titled-Tuesday-Blitz-September-26-2023"]
[Site "Chess.com"]
[Date "2023.09.26"]
[Round "4"]
[White "levallem"]
[Black "sergeikim"]
[Result "0-1"]
[WhiteElo "2375"]
[BlackElo "2612"]
[TimeControl "180+1"]
[EndTime "8:40:13 PDT"]
[Termination "sergeikim won on time"]

1. d4 {[%clk 0:03:00.9]} 1... Nf6 {[%clk 0:02:59.6]} 2. Nf3 {[%clk 0:03:00.1]}
2... g6 {[%clk 0:03:00.1]} 3. e3 {[%clk 0:02:59.9]} 3... d6 {[%clk 0:03:00.6]}
4. Be2 {[%clk 0:03:00.8]} 4... Bg7 {[%clk 0:03:00.9]} 5. O-O {[%clk 0:03:01.7]}
5... O-O {[%clk 0:03:01.4]} 6. c4 {[%clk 0:03:01.3]} 6... Nbd7 {[%clk
0:03:01.4]} 7. b4 {[%clk 0:03:01.3]} 7... e5 {[%clk 0:03:01.4]} 8. Bb2 {[%clk
0:03:00.6]} 8... e4 {[%clk 0:03:00.8]} 9. Nfd2 {[%clk 0:03:00.5]} 9... Re8
{[%clk 0:03:01.4]} 10. Nc3 {[%clk 0:03:00.4]} 10... c6 {[%clk 0:02:59.5]} 11.
Qc2 {[%clk 0:03:00.7]} 11... Qe7 {[%clk 0:02:59.3]} 12. a4 {[%clk 0:03:00.4]}
12... h5 {[%clk 0:02:59.1]} 13. b5 {[%clk 0:03:00.2]} 13... h4 {[%clk
0:02:58.8]} 14. h3 {[%clk 0:02:57.2]} 14... Nf8 {[%clk 0:02:57.6]} 15. bxc6
{[%clk 0:02:53.8]} 15... bxc6 {[%clk 0:02:57.2]} 16. Rfb1 {[%clk 0:02:53.2]}
16... N8h7 {[%clk 0:02:56.7]} 17. d5 {[%clk 0:02:47.1]} 17... c5 {[%clk
0:02:56.2]} 18. Ra3 {[%clk 0:02:39.2]} 18... Ng5 {[%clk 0:02:55.2]} 19. Bf1
{[%clk 0:02:38.5]} 19... Rb8 {[%clk 0:02:50.8]} 20. Rb3 {[%clk 0:02:37.6]} 20...
Rxb3 {[%clk 0:02:50.1]} 21. Nxb3 {[%clk 0:02:36.7]} 21... Qd8 {[%clk 0:02:43.7]}
22. Nb5 {[%clk 0:02:31.1]} 22... a6 {[%clk 0:02:43.4]} 23. Nc3 {[%clk
0:02:30.5]} 23... Bf5 {[%clk 0:02:43.1]} 24. Ne2 {[%clk 0:02:29.4]} 24... Nf3+
{[%clk 0:02:37.9]} 25. Kh1 {[%clk 0:02:25.6]} 25... Ne5 {[%clk 0:02:37.4]} 26.
Bxe5 {[%clk 0:02:10.2]} 26... Rxe5 {[%clk 0:02:35]} 27. Qc3 {[%clk 0:02:03.6]}
27... Nd7 {[%clk 0:02:29]} 28. Qa5 {[%clk 0:02:03.3]} 28... Qc8 {[%clk
0:02:17.8]} 29. Nd2 {[%clk 0:01:55.5]} 29... Re8 {[%clk 0:02:13.8]} 30. Nc1
{[%clk 0:01:17.8]} 30... Bf6 {[%clk 0:02:08.6]} 31. Be2 {[%clk 0:01:13.1]} 31...
Kg7 {[%clk 0:02:04.3]} 32. Nf1 {[%clk 0:01:12.5]} 32... Bd8 {[%clk 0:02:02.3]}
33. Qd2 {[%clk 0:01:08.6]} 33... Ne5 {[%clk 0:02:01]} 34. Nh2 {[%clk 0:01:06.4]}
34... Re7 {[%clk 0:01:51.4]} 35. Qb2 {[%clk 0:01:03]} 35... Qd7 {[%clk
0:01:39.6]} 36. Qb8 {[%clk 0:00:52.5]} 36... Nd3 {[%clk 0:01:27.3]} 37. Nxd3
{[%clk 0:00:40.9]} 37... exd3 {[%clk 0:01:27.3]} 38. Bg4 {[%clk 0:00:41.2]}
38... Ba5 {[%clk 0:01:10.6]} 39. Bxf5 {[%clk 0:00:37.4]} 39... Qxf5 {[%clk
0:01:10.6]} 40. Qxd6 {[%clk 0:00:36.2]} 40... d2 {[%clk 0:01:09.3]} 41. Rf1
{[%clk 0:00:32]} 41... Rb7 {[%clk 0:00:59.1]} 42. Qxc5 {[%clk 0:00:27.9]} 42...
Bc3 {[%clk 0:00:58]} 43. e4 {[%clk 0:00:16.3]} 43... Qxe4 {[%clk 0:00:54.1]} 44.
Nf3 {[%clk 0:00:15.3]} 44... Rb1 {[%clk 0:00:51.1]} 45. Nxd2 {[%clk 0:00:15.2]}
45... Bxd2 {[%clk 0:00:50.4]} 46. Rxb1 {[%clk 0:00:09.6]} 46... Qxb1+ {[%clk
0:00:49.8]} 47. Kh2 {[%clk 0:00:10.3]} 47... Bf4+ {[%clk 0:00:47.6]} 48. g3
{[%clk 0:00:10.7]} 48... hxg3+ {[%clk 0:00:45.9]} 49. fxg3 {[%clk 0:00:11.6]}
49... Qc2+ {[%clk 0:00:45.2]} 50. Kh1 {[%clk 0:00:12]} 50... Qd1+ {[%clk
0:00:43.6]} 51. Kg2 {[%clk 0:00:12.1]} 51... Be5 {[%clk 0:00:38.9]} 52. Qe3
{[%clk 0:00:09.2]} 52... Bd4 {[%clk 0:00:36.7]} 53. Qf4 {[%clk 0:00:04.4]} 53...
Qe2+ {[%clk 0:00:32.3]} 54. Kh1 {[%clk 0:00:04.2]} 54... Be5 {[%clk 0:00:29.4]}
0-1

[Event "Early-Titled-Tuesday-Blitz-September-26-2023"]
[Site "Chess.com"]
[Date "2023.09.26"]
[Round "4"]
[White "Aariow"]
[Black "meoluoi91"]
[Result "1-0"]
[WhiteElo "2632"]
[BlackElo "2657"]
[TimeControl "180+1"]
[EndTime "8:40:14 PDT"]
[Termination "Aariow won by resignation"]

1. Nf3 {[%clk 0:02:53.4]} 1... d5 {[%clk 0:02:55.6]} 2. e3 {[%clk 0:02:53.3]}
2... Nf6 {[%clk 0:02:50.6]} 3. b3 {[%clk 0:02:53.4]} 3... Bf5 {[%clk 0:02:48.4]}
4. Bb2 {[%clk 0:02:53.6]} 4... e6 {[%clk 0:02:48.4]} 5. Be2 {[%clk 0:02:53.7]}
5... c5 {[%clk 0:02:46.5]} 6. d4 {[%clk 0:02:49.8]} 6... Nc6 {[%clk 0:02:46.1]}
7. O-O {[%clk 0:02:48.2]} 7... cxd4 {[%clk 0:02:44.7]} 8. Nxd4 {[%clk 0:02:48]}
8... Nxd4 {[%clk 0:02:43.5]} 9. Qxd4 {[%clk 0:02:47.4]} 9... a6 {[%clk
0:02:39.8]} 10. Ba3 {[%clk 0:02:11.6]} 10... Bxa3 {[%clk 0:02:35.9]} 11. Nxa3
{[%clk 0:02:12.5]} 11... O-O {[%clk 0:02:34.9]} 12. Bf3 {[%clk 0:02:00.1]} 12...
Qa5 {[%clk 0:02:31.6]} 13. Qb2 {[%clk 0:01:51.1]} 13... Rac8 {[%clk 0:02:29.8]}
14. c4 {[%clk 0:01:50]} 14... b5 {[%clk 0:02:03.9]} 15. b4 {[%clk 0:01:43.1]}
15... Qb6 {[%clk 0:01:55.7]} 16. c5 {[%clk 0:01:39.6]} 16... Qb8 {[%clk
0:01:53.9]} 17. Rac1 {[%clk 0:01:31]} 17... Bd3 {[%clk 0:01:53]} 18. Rfd1 {[%clk
0:01:29.5]} 18... Bc4 {[%clk 0:01:52.9]} 19. Nc2 {[%clk 0:01:24.8]} 19... e5
{[%clk 0:01:44.9]} 20. g3 {[%clk 0:00:54.2]} 20... Rfd8 {[%clk 0:01:35.9]} 21.
Ne1 {[%clk 0:00:48.4]} 21... h5 {[%clk 0:01:26.3]} 22. Ng2 {[%clk 0:00:44.4]}
22... Qc7 {[%clk 0:01:19.8]} 23. Nh4 {[%clk 0:00:41]} 23... g6 {[%clk
0:01:11.1]} 24. Bg2 {[%clk 0:00:36.9]} 24... Ng4 {[%clk 0:01:03.3]} 25. h3
{[%clk 0:00:35.1]} 25... Nf6 {[%clk 0:00:52]} 26. Nf3 {[%clk 0:00:35.1]} 26...
Re8 {[%clk 0:00:52.2]} 27. Ng5 {[%clk 0:00:34.4]} 27... Qe7 {[%clk 0:00:48]} 28.
h4 {[%clk 0:00:32.4]} 28... Ng4 {[%clk 0:00:47]} 29. Bxd5 {[%clk 0:00:30.3]}
29... Bxd5 {[%clk 0:00:40.6]} 30. Rxd5 {[%clk 0:00:31.2]} 30... f6 {[%clk
0:00:37]} 31. Ne4 {[%clk 0:00:31.3]} 31... Rf8 {[%clk 0:00:25.6]} 32. Rcd1
{[%clk 0:00:29.9]} 32... Rc7 {[%clk 0:00:25.6]} 33. Qb3 {[%clk 0:00:26.9]} 33...
Kh8 {[%clk 0:00:24.6]} 34. Rd6 {[%clk 0:00:26.9]} 34... f5 {[%clk 0:00:23.3]}
35. Ng5 {[%clk 0:00:26.9]} 35... f4 {[%clk 0:00:19.6]} 36. exf4 {[%clk
0:00:18.7]} 36... exf4 {[%clk 0:00:16.8]} 37. Qc3+ {[%clk 0:00:18.1]} 37... Qg7
{[%clk 0:00:14.9]} 38. Qxg7+ {[%clk 0:00:17.7]} 38... Kxg7 {[%clk 0:00:15.8]}
39. Ne6+ {[%clk 0:00:18]} 39... Kg8 {[%clk 0:00:15.5]} 40. Nxc7 {[%clk
0:00:18.4]} 40... fxg3 {[%clk 0:00:15.8]} 41. fxg3 {[%clk 0:00:19.1]} 41... Ne3
{[%clk 0:00:16]} 42. Rxg6+ {[%clk 0:00:18.5]} 42... Kh7 {[%clk 0:00:15.4]} 43.
Rdd6 {[%clk 0:00:12.2]} 43... Rf1+ {[%clk 0:00:15.2]} 44. Kh2 {[%clk 0:00:13]}
44... Rf2+ {[%clk 0:00:15.8]} 45. Kh3 {[%clk 0:00:13.7]} 45... Nf1 {[%clk
0:00:14.3]} 46. Rh6+ {[%clk 0:00:12.5]} 46... Kg7 {[%clk 0:00:12.7]} 47. Ne8+
{[%clk 0:00:08.3]} 47... Kf7 {[%clk 0:00:12]} 48. Rdf6+ {[%clk 0:00:08.6]} 48...
Kxe8 {[%clk 0:00:12]} 49. Rxf2 {[%clk 0:00:08.8]} 1-0

[Event "Early-Titled-Tuesday-Blitz-September-26-2023"]
[Site "Chess.com"]
[Date "2023.09.26"]
[Round "4"]
[White "leejunhyeok"]
[Black "SchmakAttack"]
[Result "1-0"]
[WhiteElo "2662"]
[BlackElo "2779"]
[TimeControl "180+1"]
[EndTime "8:40:15 PDT"]
[Termination "leejunhyeok won by resignation"]

1. e4 {[%clk 0:02:59.6]} 1... e6 {[%clk 0:02:59.7]} 2. d4 {[%clk 0:02:58.6]}
2... d5 {[%clk 0:02:59.8]} 3. Nc3 {[%clk 0:02:59]} 3... Nf6 {[%clk 0:02:59.8]}
4. exd5 {[%clk 0:02:59.1]} 4... exd5 {[%clk 0:02:59.7]} 5. Bg5 {[%clk
0:02:59.1]} 5... c6 {[%clk 0:02:40.9]} 6. Qd2 {[%clk 0:02:57.5]} 6... h6 {[%clk
0:02:37.9]} 7. Bh4 {[%clk 0:02:57.1]} 7... Bb4 {[%clk 0:02:37]} 8. a3 {[%clk
0:02:56.2]} 8... Bxc3 {[%clk 0:02:32.9]} 9. Qxc3 {[%clk 0:02:55]} 9... O-O
{[%clk 0:02:32.8]} 10. Bd3 {[%clk 0:02:33.6]} 10... Re8+ {[%clk 0:01:51.7]} 11.
Ne2 {[%clk 0:02:27.1]} 11... g5 {[%clk 0:01:51.6]} 12. Bg3 {[%clk 0:02:25.8]}
12... Ne4 {[%clk 0:01:52]} 13. Bxe4 {[%clk 0:02:12.7]} 13... Rxe4 {[%clk
0:01:52.9]} 14. f3 {[%clk 0:02:12.3]} 14... Re8 {[%clk 0:01:47.1]} 15. Qd3
{[%clk 0:02:06.1]} 15... b6 {[%clk 0:01:44.5]} 16. Bxb8 {[%clk 0:02:01.3]} 16...
Rxb8 {[%clk 0:01:45.4]} 17. O-O {[%clk 0:01:52.3]} 17... Qf6 {[%clk 0:01:33.6]}
18. Ng3 {[%clk 0:01:31.5]} 18... Bd7 {[%clk 0:01:28.4]} 19. f4 {[%clk
0:01:28.2]} 19... gxf4 {[%clk 0:01:20]} 20. Nh5 {[%clk 0:01:28]} 20... Qg5
{[%clk 0:01:20.3]} 21. Nxf4 {[%clk 0:01:22.8]} 21... Re4 {[%clk 0:01:20.2]} 22.
g3 {[%clk 0:01:20.1]} 22... Rbe8 {[%clk 0:01:17.7]} 23. Rf2 {[%clk 0:01:15.9]}
23... Re3 {[%clk 0:00:59.4]} 24. Qd2 {[%clk 0:01:16.1]} 24... h5 {[%clk
0:00:56.3]} 25. Ng2 {[%clk 0:01:10.9]} 25... h4 {[%clk 0:00:46.1]} 26. Nxe3
{[%clk 0:01:05.2]} 26... Rxe3 {[%clk 0:00:47]} 27. Rf3 {[%clk 0:00:57.5]} 27...
Re5 {[%clk 0:00:31.2]} 28. Qxg5+ {[%clk 0:00:57.1]} 28... Rxg5 {[%clk
0:00:32.1]} 29. Re1 {[%clk 0:00:56.7]} 29... Bg4 {[%clk 0:00:29.3]} 30. Rc3
{[%clk 0:00:55.4]} 30... c5 {[%clk 0:00:23.6]} 31. dxc5 {[%clk 0:00:51.2]} 31...
d4 {[%clk 0:00:23.7]} 32. cxb6 {[%clk 0:00:39.2]} 32... axb6 {[%clk 0:00:12]}
33. Rd3 {[%clk 0:00:35.5]} 33... Bf5 {[%clk 0:00:11.9]} 34. Re5 {[%clk
0:00:20.7]} 34... f6 {[%clk 0:00:11.9]} 35. Rxf5 {[%clk 0:00:21]} 35... Rxf5
{[%clk 0:00:11.6]} 36. Rxd4 {[%clk 0:00:21.4]} 36... hxg3 {[%clk 0:00:11.8]} 37.
hxg3 {[%clk 0:00:21.6]} 37... Kf7 {[%clk 0:00:11.8]} 38. Rb4 {[%clk 0:00:20.5]}
38... b5 {[%clk 0:00:11.9]} 39. c4 {[%clk 0:00:17.4]} 39... bxc4 {[%clk
0:00:11.7]} 40. Rxc4 {[%clk 0:00:18.3]} 40... Rd5 {[%clk 0:00:12.2]} 41. Rb4
{[%clk 0:00:12.5]} 41... Rd2 {[%clk 0:00:09.9]} 42. a4 {[%clk 0:00:12.2]} 42...
Kg6 {[%clk 0:00:09.3]} 43. Rb5 {[%clk 0:00:11]} 43... f5 {[%clk 0:00:08.8]} 44.
a5 {[%clk 0:00:11]} 44... Kg5 {[%clk 0:00:09.3]} 45. a6 {[%clk 0:00:08.9]} 45...
Kg4 {[%clk 0:00:08.4]} 46. a7 {[%clk 0:00:08.3]} 46... Kxg3 {[%clk 0:00:08.1]}
47. Rb3+ {[%clk 0:00:07.9]} 1-0

[Event "Early-Titled-Tuesday-Blitz-September-26-2023"]
[Site "Chess.com"]
[Date "2023.09.26"]
[Round "4"]
[White "a-z30"]
[Black "fastestmindalive"]
[Result "0-1"]
[WhiteElo "2527"]
[BlackElo "2712"]
[TimeControl "180+1"]
[EndTime "8:40:17 PDT"]
[Termination "fastestmindalive won by checkmate"]

1. d3 {[%clk 0:03:00.9]} 1... Nf6 {[%clk 0:02:59]} 2. Nf3 {[%clk 0:03:01.8]}
2... Nc6 {[%clk 0:02:56.9]} 3. g3 {[%clk 0:03:02]} 3... e5 {[%clk 0:02:57.1]} 4.
Bg2 {[%clk 0:03:02.6]} 4... d5 {[%clk 0:02:57.7]} 5. O-O {[%clk 0:03:03]} 5...
h6 {[%clk 0:02:56.9]} 6. c3 {[%clk 0:02:37.3]} 6... a5 {[%clk 0:02:35.2]} 7. Qc2
{[%clk 0:02:35.2]} 7... Nd7 {[%clk 0:02:14.1]} 8. e4 {[%clk 0:02:26]} 8... dxe4
{[%clk 0:02:12.2]} 9. dxe4 {[%clk 0:02:25.8]} 9... Nc5 {[%clk 0:02:12.9]} 10.
Rd1 {[%clk 0:02:25.6]} 10... Qe7 {[%clk 0:02:12.7]} 11. Nbd2 {[%clk 0:02:09]}
11... Be6 {[%clk 0:01:30.1]} 12. Nf1 {[%clk 0:02:08.4]} 12... Qf6 {[%clk
0:01:09.8]} 13. Ne3 {[%clk 0:02:07.7]} 13... Qg6 {[%clk 0:01:09.7]} 14. Nh4
{[%clk 0:01:58.4]} 14... Qh7 {[%clk 0:00:31.2]} 15. Nhf5 {[%clk 0:01:57.9]}
15... g6 {[%clk 0:00:29.7]} 16. Nd5 {[%clk 0:01:47.9]} 16... Bxd5 {[%clk
0:00:24.9]} 17. exd5 {[%clk 0:01:45.4]} 17... Ne7 {[%clk 0:00:23.8]} 18. Ne3
{[%clk 0:01:22.9]} 18... h5 {[%clk 0:00:11.1]} 19. b4 {[%clk 0:01:08.5]} 19...
Nd7 {[%clk 0:00:03.5]} 20. d6 {[%clk 0:01:03.9]} 20... cxd6 {[%clk 0:00:03.8]}
21. Nc4 {[%clk 0:01:03.4]} 21... Nf5 {[%clk 0:00:03.3]} 22. Bxb7 {[%clk
0:00:58.9]} 22... Rd8 {[%clk 0:00:03.9]} 23. Nxa5 {[%clk 0:00:57.7]} 23... h4
{[%clk 0:00:04.5]} 24. g4 {[%clk 0:00:53.1]} 24... h3 {[%clk 0:00:04.6]} 25.
gxf5 {[%clk 0:00:36.9]} 25... gxf5 {[%clk 0:00:05.5]} 26. Kh1 {[%clk 0:00:30.5]}
26... e4 {[%clk 0:00:05.3]} 27. Bf4 {[%clk 0:00:25.6]} 27... Rg8 {[%clk
0:00:05.2]} 28. Rg1 {[%clk 0:00:22.2]} 28... Rg6 {[%clk 0:00:03.8]} 29. Rxg6
{[%clk 0:00:19.6]} 29... Qxg6 {[%clk 0:00:04.7]} 30. Rg1 {[%clk 0:00:17.9]}
30... Qe6 {[%clk 0:00:04.3]} 31. Qb3 {[%clk 0:00:15.4]} 31... Qf6 {[%clk
0:00:03.7]} 32. Nc6 {[%clk 0:00:12.8]} 32... Qh4 {[%clk 0:00:03.4]} 33. Bg3
{[%clk 0:00:11.9]} 33... Qh5 {[%clk 0:00:03.6]} 34. Qd1 {[%clk 0:00:10.9]} 34...
Qh7 {[%clk 0:00:03.1]} 35. Nxd8 {[%clk 0:00:11.1]} 35... Kxd8 {[%clk 0:00:04]}
36. Bc6 {[%clk 0:00:11.4]} 36... Nf6 {[%clk 0:00:04]} 37. Qd4 {[%clk 0:00:10.3]}
37... Ng4 {[%clk 0:00:04.2]} 38. Qb6+ {[%clk 0:00:10]} 38... Ke7 {[%clk
0:00:04.8]} 39. Qc7+ {[%clk 0:00:10]} 39... Kf6 {[%clk 0:00:05.5]} 40. Bd5
{[%clk 0:00:07.7]} 40... f4 {[%clk 0:00:05.4]} 41. f3 {[%clk 0:00:03.2]} 41...
fxg3 {[%clk 0:00:04.3]} 42. Rxg3 {[%clk 0:00:01.5]} 42... Nf2+ {[%clk
0:00:04.5]} 43. Kg1 {[%clk 0:00:01.8]} 43... e3 {[%clk 0:00:05.1]} 44. Kf1
{[%clk 0:00:02.7]} 44... Qd3+ {[%clk 0:00:04]} 45. Ke1 {[%clk 0:00:01.7]} 45...
Qd1# {[%clk 0:00:04.9]} 0-1

[Event "Early-Titled-Tuesday-Blitz-September-26-2023"]
[Site "Chess.com"]
[Date "2023.09.26"]
[Round "4"]
[White "Balla_Tamas"]
[Black "HSH1987"]
[Result "0-1"]
[WhiteElo "2425"]
[BlackElo "2647"]
[TimeControl "180+1"]
[EndTime "8:40:20 PDT"]
[Termination "HSH1987 won by resignation"]

1. e4 {[%clk 0:03:00.9]} 1... d6 {[%clk 0:02:58.6]} 2. d4 {[%clk 0:02:59.8]}
2... Nf6 {[%clk 0:02:59.5]} 3. Nc3 {[%clk 0:03:00]} 3... g6 {[%clk 0:02:59.4]}
4. f4 {[%clk 0:02:59.9]} 4... Bg7 {[%clk 0:02:58.2]} 5. Nf3 {[%clk 0:03:00.5]}
5... O-O {[%clk 0:02:57.9]} 6. Bd3 {[%clk 0:03:00.6]} 6... c5 {[%clk 0:02:57.3]}
7. e5 {[%clk 0:02:46.5]} 7... dxe5 {[%clk 0:02:52.5]} 8. dxe5 {[%clk 0:02:45.3]}
8... Nd5 {[%clk 0:02:52.1]} 9. Ne4 {[%clk 0:02:39.3]} 9... Nc6 {[%clk
0:02:46.8]} 10. O-O {[%clk 0:02:32.8]} 10... Ndb4 {[%clk 0:01:56.4]} 11. Nxc5
{[%clk 0:01:47.3]} 11... Qb6 {[%clk 0:01:53.4]} 12. Be3 {[%clk 0:01:46.2]} 12...
Nxd3 {[%clk 0:01:52.1]} 13. Qxd3 {[%clk 0:01:42.1]} 13... Bf5 {[%clk 0:01:44.4]}
14. Qc3 {[%clk 0:01:32.9]} 14... Qc7 {[%clk 0:01:34.1]} 15. Nb3 {[%clk
0:01:21.1]} 15... Rac8 {[%clk 0:01:31.1]} 16. Qe1 {[%clk 0:01:09.8]} 16... Bxc2
{[%clk 0:01:25.2]} 17. Nc5 {[%clk 0:01:03.3]} 17... b6 {[%clk 0:01:18.9]} 18.
Rc1 {[%clk 0:01:01.9]} 18... Bf5 {[%clk 0:01:14.3]} 19. Nb3 {[%clk 0:00:55.9]}
19... Qb7 {[%clk 0:01:12.4]} 20. Nbd4 {[%clk 0:00:49.6]} 20... Bd7 {[%clk
0:01:10.1]} 21. Qd2 {[%clk 0:00:46.5]} 21... Rfd8 {[%clk 0:01:07.7]} 22. Rfd1
{[%clk 0:00:44.8]} 22... Be8 {[%clk 0:01:05.8]} 23. Qf2 {[%clk 0:00:38.6]} 23...
Nb4 {[%clk 0:01:03.4]} 24. Rxc8 {[%clk 0:00:34.9]} 24... Rxc8 {[%clk 0:01:04.3]}
25. a3 {[%clk 0:00:35]} 25... Nd5 {[%clk 0:01:03.2]} 26. e6 {[%clk 0:00:32.2]}
26... f5 {[%clk 0:00:55]} 27. Ne5 {[%clk 0:00:19.1]} 27... Ba4 {[%clk
0:00:40.2]} 28. Re1 {[%clk 0:00:16.5]} 28... Qc7 {[%clk 0:00:34.8]} 29. Nd7
{[%clk 0:00:11.4]} 29... Bxd7 {[%clk 0:00:31.7]} 30. exd7 {[%clk 0:00:11.7]}
30... Qxd7 {[%clk 0:00:32.6]} 31. Ne2 {[%clk 0:00:07.3]} 31... Nxe3 {[%clk
0:00:30.6]} 32. Qxe3 {[%clk 0:00:08.2]} 32... Bxb2 {[%clk 0:00:30.4]} 33. Kh1
{[%clk 0:00:07.9]} 33... Bf6 {[%clk 0:00:29.6]} 34. Qb3+ {[%clk 0:00:05.7]}
34... Kg7 {[%clk 0:00:28.8]} 35. Ng3 {[%clk 0:00:06.3]} 35... Rc3 {[%clk
0:00:26.5]} 36. Qb4 {[%clk 0:00:06.3]} 36... Qd6 {[%clk 0:00:21.3]} 37. Qb5
{[%clk 0:00:05.2]} 37... Rxa3 {[%clk 0:00:20]} 38. Qc4 {[%clk 0:00:04.8]} 38...
Rd3 {[%clk 0:00:18.2]} 39. Nf1 {[%clk 0:00:04.3]} 39... Rd1 {[%clk 0:00:17.9]}
40. Qe2 {[%clk 0:00:02.4]} 40... Rxe1 {[%clk 0:00:17.2]} 41. Qxe1 {[%clk
0:00:03.3]} 41... Qxf4 {[%clk 0:00:17.4]} 42. Ne3 {[%clk 0:00:03.5]} 42... Qe4
{[%clk 0:00:17]} 43. Qd2 {[%clk 0:00:03.1]} 43... Bg5 {[%clk 0:00:16.1]} 44.
Qc3+ {[%clk 0:00:02.5]} 44... Kh6 {[%clk 0:00:15.4]} 45. Nf1 {[%clk 0:00:02.3]}
45... Bf6 {[%clk 0:00:12.4]} 46. Qc8 {[%clk 0:00:02.4]} 46... Kg7 {[%clk
0:00:10.6]} 47. Qc7 {[%clk 0:00:01.2]} 47... Qe1 {[%clk 0:00:09.4]} 48. Qf4
{[%clk 0:00:01.5]} 48... b5 {[%clk 0:00:08.1]} 49. Kg1 {[%clk 0:00:01.7]} 49...
e5 {[%clk 0:00:06.4]} 50. Qc1 {[%clk 0:00:01.1]} 50... Qxc1 {[%clk 0:00:05.7]}
0-1